[Event "44th Chess Olympiad Open 2022"]
[Site "Chennai"]
[Date "2022.08.08"]
[Round "10.31"]
[White "Cubas, Jose Fernando"]
[Black "Dornbusch, Tatiana"]
[Result "1-0"]
[WhiteElo "2451"]
[BlackElo "2247"]
[Annotator "RC"]
[PlyCount "59"]
[EventDate "2022.??.??"]
[TimeControl "60"]

1. e4 {[%emt 0:00:03]} e5 {[%emt 0:00:39]} 2. Nf3 {[%emt 0:00:34]} Nc6 {
[%emt 0:00:05]} 3. Bc4 {[%emt 0:01:13]} Nf6 {[%emt 0:00:31]} 4. d3 {[%emt 0:00:
00]} Be7 {[%emt 0:00:45]} 5. O-O {[%emt 0:00:50]} O-O {[%emt 0:00:35]} 6. Re1 {
[%emt 0:00:04]} d6 {[%emt 0:00:43]} 7. a4 {[%emt 0:00:05]} Be6 {[%emt 0:06:10]}
8. Nbd2 {[%emt 0:03:37]} Re8 {[%emt 0:11:51]} 9. Bxe6 {[%emt 0:06:17]} fxe6 {
[%emt 0:00:03]} 10. Nc4 {[%emt 0:00:23]} Nd7 {[%emt 0:03:52]} 11. c3 {[%emt 0:
00:00]} Bf6 {[%emt 0:02:21]} 12. b4 {[%emt 0:05:26]} d5 {[%emt 0:10:04]} 13. b5
{[%emt 0:14:11]} dxc4 {[%emt 0:08:14]} 14. bxc6 {[%emt 0:00:07]} Nc5 {[%emt 0:
00:00]} 15. cxb7 {[%emt 0:01:56]} Rb8 {[%emt 0:03:28]} 16. Rb1 {[%emt 0:13:23]}
Nxd3 {[%emt 0:22:37]} 17. Rf1 {[%emt 0:00:00]} c5 {[%emt 0:04:04]} 18. Be3 {
[%emt 0:00:00]} Qa5 {[%emt 0:10:11]} 19. Qc2 {[%emt 0:00:00]} Qa6 {[%emt 0:00:
00]} 20. Qa2 {[%emt 0:01:02]} Re7 {[%emt 0:02:09]} 21. Nd2 {[%emt 0:05:04]}
Rexb7 {[%emt 0:00:53]} 22. Rxb7 {[%emt 0:00:14]} Rxb7 {[%emt 0:02:02]} 23. Nxc4
{[%emt 0:00:24]} Rd7 {[%emt 0:03:24]} 24. g3 {[%emt 0:01:44]} Bd8 {[%emt 0:00:
00]} 25. f3 {[%emt 0:02:31]} Kf7 {[%emt 0:01:11]} 26. Qb3 {[%emt 0:02:12]} Ke8
{[%emt 0:00:38]} 27. Rd1 {[%emt 0:03:00]} Ke7 {[%emt 0:00:33]} 28. Qb5 {
[%emt 0:02:59]} Qc8 {[%emt 0:00:07]} 29. Kf1 {[%emt 0:01:31]} a6 {[%emt 0:00:
00]} 30. Qb1 {[%emt 0:00:10]} 1-0

[Event "44th Chess Olympiad Open 2022"]
[Site "Chennai"]
[Date "2022.08.08"]
[Round "10.31"]
[White "Bagheri, Amir"]
[Black "Delgado Ramirez, Neuris"]
[Result "1-0"]
[WhiteElo "2375"]
[BlackElo "2614"]
[Annotator "RC"]
[PlyCount "75"]
[EventDate "2022.??.??"]
[TimeControl "60"]

1. d4 {[%emt 0:00:02]} Nf6 {[%emt 0:00:07]} 2. Nf3 {[%emt 0:00:04]} g6 {
[%emt 0:00:08]} 3. c4 {[%emt 0:01:11]} Bg7 {[%emt 0:00:06]} 4. Nc3 {[%emt 0:00:
00]} O-O {[%emt 0:00:09]} 5. e4 {[%emt 0:00:25]} d6 {[%emt 0:00:21]} 6. Be2 {
[%emt 0:00:39]} e5 {[%emt 0:00:33]} 7. O-O {[%emt 0:11:46]} Nc6 {[%emt 0:00:08]
} 8. d5 {[%emt 0:00:23]} Ne7 {[%emt 0:00:07]} 9. b4 {[%emt 0:00:04]} a5 {
[%emt 0:00:10]} 10. bxa5 {[%emt 0:02:42]} Rxa5 {[%emt 0:00:16]} 11. a4 {
[%emt 0:00:30]} c5 {[%emt 0:00:09]} 12. Rb1 {[%emt 0:15:15]} Nd7 {[%emt 0:00:
00]} 13. Bd2 {[%emt 0:06:39]} h6 {[%emt 0:00:37]} 14. Ne1 {[%emt 0:01:35]} f5 {
[%emt 0:01:58]} 15. exf5 {[%emt 0:00:40]} Nxf5 {[%emt 0:06:22]} 16. Ne4 {
[%emt 0:01:01]} Ra6 {[%emt 0:00:10]} 17. Bd3 {[%emt 0:02:46]} Nf6 {[%emt 0:00:
00]} 18. Nxf6+ {[%emt 0:03:27]} Qxf6 {[%emt 0:00:35]} 19. a5 {[%emt 0:00:27]}
h5 {[%emt 0:05:43]} 20. Nc2 {[%emt 0:05:11]} Nh4 {[%emt 0:04:57]} 21. Rb3 {
[%emt 0:03:26]} Bg4 {[%emt 0:02:29]} 22. Be2 {[%emt 0:05:09]} Bc8 {[%emt 0:00:
00]} 23. Bd3 {[%emt 0:00:10]} Rf7 {[%emt 0:15:52]} 24. Be4 {[%emt 0:06:06]} Bg4
{[%emt 0:00:17]} 25. Qc1 {[%emt 0:01:16]} Qe7 {[%emt 0:00:54]} 26. f3 {[%emt 0:
00:00]} Bc8 {[%emt 0:00:13]} 27. Bg5 {[%emt 0:02:55]} Bf6 {[%emt 0:00:04]} 28.
Bxh4 {[%emt 0:00:38]} Bxh4 {[%emt 0:00:04]} 29. Bxg6 {[%emt 0:00:28]} Rg7 {
[%emt 0:00:03]} 30. Bxh5 {[%emt 0:00:36]} Rxa5 {[%emt 0:00:11]} 31. Bg4 {
[%emt 0:00:20]} Bg5 {[%emt 0:02:43]} 32. Qe1 {[%emt 0:00:38]} Ra2 {[%emt 0:00:
00]} 33. Qe4 {[%emt 0:00:48]} Qd8 {[%emt 0:03:06]} 34. Ra3 {[%emt 0:04:32]}
Rxa3 {[%emt 0:02:10]} 35. Nxa3 {[%emt 0:00:07]} Qa5 {[%emt 0:00:14]} 36. Bxc8 {
[%emt 0:04:56]} Qxa3 {[%emt 0:00:07]} 37. f4 {[%emt 0:00:11]} exf4 {[%emt 0:00:
00]} 38. Qe8+ {[%emt 0:00:25]} 1-0

[Event "44th Chess Olympiad Open 2022"]
[Site "Chennai"]
[Date "2022.08.08"]
[Round "10.31"]
[White "Jodorcovsky Werjivker, Paulo"]
[Black "Verdier, Patrice"]
[Result "1-0"]
[WhiteElo "2213"]
[BlackElo "2017"]
[Annotator "NA RC"]
[PlyCount "43"]
[EventDate "2022.??.??"]
[TimeControl "60"]

1. d4 {[%emt 0:00:09]} Nf6 {[%emt 0:00:12]} 2. c4 {[%emt 0:00:09]} c5 {[%emt 0:
00:00]} 3. d5 {[%emt 0:00:28]} b5 {[%emt 0:00:09]} 4. cxb5 {[%emt 0:00:56]} a6
{[%emt 0:00:14]} 5. Nc3 {[%emt 0:00:53]} axb5 {[%emt 0:01:54]} 6. e4 {[%emt 0:
00:00]} b4 {[%emt 0:00:04]} 7. Nb5 {[%emt 0:00:40]} d6 {[%emt 0:00:04]} 8. a4 {
[%emt 0:00:14]} bxa3 {[%emt 0:07:56]} 9. Rxa3 {[%emt 0:00:09]} Rxa3 {[%emt 0:
00:00]} 10. bxa3 {[%emt 0:00:06]} Ba6 {[%emt 0:18:49]} 11. Qa4 {[%emt 0:02:14]}
Bxb5 {[%emt 0:05:35]} 12. Bxb5+ {[%emt 0:00:16]} Nfd7 {[%emt 0:04:18]} 13. Nf3
{[%emt 0:03:59]} f6 {[%emt 0:04:55]} 14. Bd2 {[%emt 0:06:15]} Kf7 {[%emt 0:00:
00]} 15. Qa7 {[%emt 0:01:55]} Qb6 {[%emt 0:09:26]} 16. Qxb6 {[%emt 0:00:30]}
Nxb6 {[%emt 0:00:02]} 17. a4 {[%emt 0:00:11]} e5 {[%emt 0:05:22]} 18. a5 {
[%emt 0:01:15]} Nc8 {[%emt 0:02:19]} 19. Ke2 {[%emt 0:01:09]} Be7 {[%emt 0:00:
00]} 20. Rb1 {[%emt 0:00:58]} Bd8 {[%emt 0:13:54]} 21. Bc4 {[%emt 0:01:20]} Nd7
{[%emt 0:07:18]} 22. Rb7 {[%emt 0:00:32]} 1-0

[Event "44th Chess Olympiad Open 2022"]
[Site "Chennai"]
[Date "2022.08.08"]
[Round "10.31"]
[White "Ribbegren, Karl Johan"]
[Black "Zacarias, M Ruben D"]
[Result "0-1"]
[WhiteElo "2198"]
[BlackElo "2175"]
[Annotator "NA RC"]
[PlyCount "69"]
[EventDate "2022.??.??"]
[TimeControl "60"]

1. Nf3 {[%emt 0:00:07]} Nf6 {[%emt 0:00:06]} 2. g3 {[%emt 0:00:40]} g6 {
[%emt 0:00:17]} 3. Bg2 {[%emt 0:00:18]} Bg7 {[%emt 0:00:07]} 4. O-O {[%emt 0:
00:00]} O-O {[%emt 0:00:05]} 5. c4 {[%emt 0:01:32]} d6 {[%emt 0:00:09]} 6. Nc3
{[%emt 0:01:36]} e5 {[%emt 0:00:14]} 7. Rb1 {[%emt 0:02:14]} a5 {[%emt 0:01:02]
} 8. a3 {[%emt 0:01:04]} h6 {[%emt 0:08:11]} 9. d3 {[%emt 0:02:31]} Re8 {
[%emt 0:00:54]} 10. b4 {[%emt 0:12:51]} axb4 {[%emt 0:02:09]} 11. axb4 {
[%emt 0:00:09]} c6 {[%emt 0:08:47]} 12. b5 {[%emt 0:05:03]} d5 {[%emt 0:01:10]}
13. bxc6 {[%emt 0:01:13]} bxc6 {[%emt 0:00:07]} 14. cxd5 {[%emt 0:01:53]} cxd5
{[%emt 0:00:09]} 15. Bd2 {[%emt 0:11:53]} Ba6 {[%emt 0:12:10]} 16. Qc1 {
[%emt 0:08:56]} Kh7 {[%emt 0:00:52]} 17. Nb5 {[%emt 0:02:08]} Bxb5 {[%emt 0:00:
00]} 18. Rxb5 {[%emt 0:00:31]} Qd7 {[%emt 0:03:16]} 19. Qb1 {[%emt 0:01:43]}
Nc6 {[%emt 0:04:22]} 20. Rc1 {[%emt 0:03:54]} e4 {[%emt 0:08:59]} 21. Ne1 {
[%emt 0:07:54]} Nd4 {[%emt 0:00:49]} 22. Rb7 {[%emt 0:00:35]} Qe6 {[%emt 0:00:
00]} 23. Rcc7 {[%emt 0:01:33]} Kg8 {[%emt 0:00:30]} 24. e3 {[%emt 0:01:54]} Nf5
{[%emt 0:03:31]} 25. Rb6 {[%emt 0:07:10]} Qe5 {[%emt 0:01:27]} 26. Qc2 {
[%emt 0:02:33]} d4 {[%emt 0:00:00]} 27. Qc4 {[%emt 0:03:54]} Rf8 {[%emt 0:00:
00]} 28. Bb4 {[%emt 0:02:41]} dxe3 {[%emt 0:03:51]} 29. dxe4 {[%emt 0:02:16]}
exf2+ {[%emt 0:00:00]} 30. Kxf2 {[%emt 0:03:07]} Ng4+ {[%emt 0:00:00]} 31. Ke2
{[%emt 0:02:44]} Nfe3 {[%emt 0:00:35]} 32. Qc1 {[%emt 0:03:41]} Ra2+ {[%emt 0:
00:00]} 33. Bd2 {[%emt 0:01:19]} Nxg2 {[%emt 0:01:23]} 34. Kf3 {[%emt 0:02:59]}
Nxe1+ {[%emt 0:00:32]} 35. Bxe1 {[%emt 0:00:52]} 0-1

[Event "44th Chess Olympiad Open 2022"]
[Site "Chennai"]
[Date "2022.08.08"]
[Round "10.32"]
[White "Meier, Georg"]
[Black "Al-Zendani, Zendan"]
[Result "1-0"]
[WhiteElo "2613"]
[BlackElo "2284"]
[Annotator "RC"]
[PlyCount "71"]
[EventDate "2022.??.??"]
[TimeControl "60"]

1. d4 {[%emt 0:00:02]} Nf6 {[%emt 0:00:06]} 2. Nf3 {[%emt 0:00:20]} e6 {
[%emt 0:00:07]} 3. g3 {[%emt 0:00:16]} d5 {[%emt 0:00:26]} 4. c4 {[%emt 0:00:
00]} Be7 {[%emt 0:00:25]} 5. Bg2 {[%emt 0:00:07]} O-O {[%emt 0:00:12]} 6. Nc3 {
[%emt 0:00:11]} dxc4 {[%emt 0:02:44]} 7. Ne5 {[%emt 0:00:07]} a6 {[%emt 0:00:
00]} 8. O-O {[%emt 0:05:54]} Nd5 {[%emt 0:06:13]} 9. Nxc4 {[%emt 0:01:49]} Nc6
{[%emt 0:08:53]} 10. e4 {[%emt 0:06:11]} Nxc3 {[%emt 0:05:00]} 11. bxc3 {
[%emt 0:00:10]} b5 {[%emt 0:00:36]} 12. Ne3 {[%emt 0:01:07]} Na5 {[%emt 0:00:
00]} 13. Qe2 {[%emt 0:06:59]} c5 {[%emt 0:06:50]} 14. Rd1 {[%emt 0:00:00]} cxd4
{[%emt 0:00:26]} 15. cxd4 {[%emt 0:00:00]} Bb7 {[%emt 0:02:37]} 16. Bb2 {
[%emt 0:00:00]} Bg5 {[%emt 0:03:07]} 17. f4 {[%emt 0:00:00]} Bf6 {[%emt 0:00:
00]} 18. e5 {[%emt 0:00:00]} Bxg2 {[%emt 0:00:35]} 19. Kxg2 {[%emt 0:00:00]}
Be7 {[%emt 0:00:20]} 20. d5 {[%emt 0:00:00]} Qd7 {[%emt 0:11:24]} 21. Bc3 {
[%emt 0:08:04]} b4 {[%emt 0:00:51]} 22. Be1 {[%emt 0:00:13]} Bc5 {[%emt 0:00:
00]} 23. Rac1 {[%emt 0:05:08]} Rfc8 {[%emt 0:03:55]} 24. d6 {[%emt 0:00:23]}
Nb7 {[%emt 0:10:12]} 25. Nf1 {[%emt 0:14:29]} a5 {[%emt 0:00:29]} 26. Nd2 {
[%emt 0:00:07]} a4 {[%emt 0:01:12]} 27. Ne4 {[%emt 0:05:39]} b3 {[%emt 0:00:32]
} 28. axb3 {[%emt 0:03:21]} axb3 {[%emt 0:00:09]} 29. Kh3 {[%emt 0:03:03]} Ba3
{[%emt 0:05:42]} 30. Rb1 {[%emt 0:03:06]} b2 {[%emt 0:00:04]} 31. Bc3 {[%emt 0:
00:00]} f5 {[%emt 0:03:14]} 32. exf6 {[%emt 0:03:29]} e5+ {[%emt 0:03:10]} 33.
Kg2 {[%emt 0:08:06]} Ra4 {[%emt 0:00:00]} 34. Bxe5 {[%emt 0:05:34]} Qc6 {
[%emt 0:00:00]} 35. Qg4 {[%emt 0:00:23]} Qxe4+ {[%emt 0:00:00]} 36. Kh3 {
[%emt 0:00:07]} 1-0

[Event "44th Chess Olympiad Open 2022"]
[Site "Chennai"]
[Date "2022.08.08"]
[Round "10.32"]
[White "Vazquez Facundo"]
[Black "Al Harazy, Khalid"]
[Result "1-0"]
[WhiteElo "2336"]
[BlackElo "2149"]
[Annotator "RC"]
[PlyCount "47"]
[EventDate "2022.??.??"]
[TimeControl "60"]

1. d4 {[%emt 0:00:03]} d5 {[%emt 0:00:06]} 2. c4 {[%emt 0:00:07]} e5 {[%emt 0:
00:00]} 3. dxe5 {[%emt 0:00:39]} d4 {[%emt 0:00:10]} 4. Nf3 {[%emt 0:00:12]}
Nc6 {[%emt 0:00:43]} 5. a3 {[%emt 0:00:09]} Bg4 {[%emt 0:00:24]} 6. Nbd2 {
[%emt 0:03:07]} Nge7 {[%emt 0:05:41]} 7. Nb3 {[%emt 0:08:29]} Bxf3 {[%emt 0:00:
00]} 8. exf3 {[%emt 0:00:50]} Ng6 {[%emt 0:00:20]} 9. f4 {[%emt 0:01:28]} a5 {
[%emt 0:00:19]} 10. g3 {[%emt 0:06:28]} a4 {[%emt 0:07:09]} 11. Nd2 {[%emt 0:
00:00]} Bc5 {[%emt 0:03:21]} 12. Bd3 {[%emt 0:03:01]} Qe7 {[%emt 0:05:24]} 13.
Ne4 {[%emt 0:02:19]} O-O {[%emt 0:03:46]} 14. O-O {[%emt 0:02:35]} Ra6 {
[%emt 0:03:47]} 15. Qh5 {[%emt 0:05:48]} Nd8 {[%emt 0:08:16]} 16. f5 {[%emt 0:
00:00]} Re8 {[%emt 0:22:14]} 17. fxg6 {[%emt 0:04:23]} fxg6 {[%emt 0:01:54]}
18. Qg5 {[%emt 0:00:27]} Qxe5 {[%emt 0:01:07]} 19. Qxe5 {[%emt 0:00:21]} Rxe5 {
[%emt 0:00:01]} 20. f4 {[%emt 0:00:15]} Rh5 {[%emt 0:03:57]} 21. g4 {[%emt 0:
00:00]} Rh3 {[%emt 0:01:13]} 22. Nxc5 {[%emt 0:00:14]} Rc6 {[%emt 0:14:31]} 23.
Kg2 {[%emt 0:00:10]} Rh4 {[%emt 0:02:12]} 24. Kg3 {[%emt 0:00:14]} 1-0

[Event "44th Chess Olympiad Open 2022"]
[Site "Chennai"]
[Date "2022.08.08"]
[Round "10.32"]
[White "Al-Aqrabi, Saleh"]
[Black "Hoffman, Alejandro"]
[Result "0-1"]
[WhiteElo "2172"]
[BlackElo "2390"]
[Annotator "RC"]
[PlyCount "60"]
[EventDate "2022.??.??"]
[TimeControl "60"]

1. d4 {[%emt 0:00:03]} g6 {[%emt 0:00:15]} 2. c3 {[%emt 0:00:26]} Bg7 {[%emt 0:
00:00]} 3. Bf4 {[%emt 0:00:04]} d6 {[%emt 0:00:57]} 4. e3 {[%emt 0:00:30]} Nd7
{[%emt 0:01:41]} 5. Nf3 {[%emt 0:00:37]} e5 {[%emt 0:01:35]} 6. dxe5 {[%emt 0:
00:00]} dxe5 {[%emt 0:00:37]} 7. Bg3 {[%emt 0:00:06]} Nh6 {[%emt 0:01:27]} 8.
h3 {[%emt 0:00:09]} O-O {[%emt 0:01:06]} 9. Nbd2 {[%emt 0:00:13]} Qe7 {[%emt 0:
00:00]} 10. Qc2 {[%emt 0:00:49]} Nf5 {[%emt 0:10:44]} 11. Bh2 {[%emt 0:04:19]}
Nd6 {[%emt 0:00:37]} 12. Be2 {[%emt 0:05:05]} Nc5 {[%emt 0:01:18]} 13. O-O {
[%emt 0:02:34]} Bf5 {[%emt 0:00:40]} 14. Qd1 {[%emt 0:01:00]} Rfd8 {[%emt 0:00:
00]} 15. b4 {[%emt 0:00:58]} Nce4 {[%emt 0:06:10]} 16. Qb3 {[%emt 0:02:05]} c5
{[%emt 0:04:42]} 17. Nxe4 {[%emt 0:05:57]} Nxe4 {[%emt 0:00:09]} 18. Rad1 {
[%emt 0:01:02]} Rdc8 {[%emt 0:05:00]} 19. Nd2 {[%emt 0:06:25]} cxb4 {[%emt 0:
00:00]} 20. cxb4 {[%emt 0:11:07]} Nc3 {[%emt 0:03:11]} 21. Rde1 {[%emt 0:02:42]
} Bc2 {[%emt 0:00:42]} 22. Qb2 {[%emt 0:10:08]} e4 {[%emt 0:01:32]} 23. Qa3 {
[%emt 0:01:47]} Nxe2+ {[%emt 0:01:16]} 24. Rxe2 {[%emt 0:00:32]} Bd3 {[%emt 0:
00:00]} 25. Ree1 {[%emt 0:00:40]} a5 {[%emt 0:00:23]} 26. Rc1 {[%emt 0:01:24]}
Bxf1 {[%emt 0:00:46]} 27. Rxf1 {[%emt 0:02:41]} Qxb4 {[%emt 0:00:35]} 28. Qxb4
{[%emt 0:00:09]} axb4 {[%emt 0:00:02]} 29. Bd6 {[%emt 0:00:36]} Rxa2 {[%emt 0:
00:00]} 30. Bxb4 {[%emt 0:00:53]} Rb2 {[%emt 0:00:11]} 0-1

[Event "44th Chess Olympiad Open 2022"]
[Site "Chennai"]
[Date "2022.08.08"]
[Round "10.32"]
[White "Al-Subaihi, Khalil"]
[Black "Roselli Mailhe, Bernardo"]
[Result "0-1"]
[WhiteElo "2141"]
[BlackElo "2413"]
[Annotator "RC"]
[PlyCount "134"]
[EventDate "2022.??.??"]
[TimeControl "60"]

1. e4 {[%emt 0:00:02]} c5 {[%emt 0:00:04]} 2. Nf3 {[%emt 0:00:41]} e6 {[%emt 0:
00:00]} 3. d4 {[%emt 0:00:05]} cxd4 {[%emt 0:00:08]} 4. Nxd4 {[%emt 0:00:02]}
Nf6 {[%emt 0:00:15]} 5. Nc3 {[%emt 0:00:13]} Nc6 {[%emt 0:00:05]} 6. Ndb5 {
[%emt 0:00:51]} Bb4 {[%emt 0:00:09]} 7. a3 {[%emt 0:06:05]} Bxc3+ {[%emt 0:00:
00]} 8. Nxc3 {[%emt 0:00:01]} d5 {[%emt 0:00:10]} 9. exd5 {[%emt 0:00:34]} exd5
{[%emt 0:00:08]} 10. Bg5 {[%emt 0:00:42]} O-O {[%emt 0:13:12]} 11. Be2 {
[%emt 0:00:16]} Bf5 {[%emt 0:06:55]} 12. O-O {[%emt 0:06:15]} d4 {[%emt 0:00:
00]} 13. Na2 {[%emt 0:01:33]} h6 {[%emt 0:10:17]} 14. Bh4 {[%emt 0:00:22]} Qd6
{[%emt 0:00:22]} 15. Bd3 {[%emt 0:01:57]} Ng4 {[%emt 0:14:23]} 16. Bg3 {
[%emt 0:02:40]} Qg6 {[%emt 0:00:49]} 17. Bxf5 {[%emt 0:01:58]} Qxf5 {[%emt 0:
00:00]} 18. Nb4 {[%emt 0:02:08]} Rfd8 {[%emt 0:07:26]} 19. Nd3 {[%emt 0:11:08]}
Rac8 {[%emt 0:02:56]} 20. Re1 {[%emt 0:00:55]} Nf6 {[%emt 0:21:43]} 21. Qd2 {
[%emt 0:25:45]} Ne4 {[%emt 0:00:00]} 22. Qf4 {[%emt 0:01:18]} Qxf4 {[%emt 0:00:
00]} 23. Bxf4 {[%emt 0:00:25]} Nf6 {[%emt 0:00:00]} 24. Rac1 {[%emt 0:08:01]}
Na5 {[%emt 0:00:00]} 25. Be5 {[%emt 0:19:23]} Ng4 {[%emt 0:00:24]} 26. Bf4 {
[%emt 0:03:13]} Kf8 {[%emt 0:07:43]} 27. Bd2 {[%emt 0:03:06]} Nc6 {[%emt 0:00:
00]} 28. h3 {[%emt 0:00:40]} Nf6 {[%emt 0:00:07]} 29. Nb4 {[%emt 0:02:44]} Ne7
{[%emt 0:02:04]} 30. Nd3 {[%emt 0:01:29]} Ned5 {[%emt 0:00:23]} 31. Re2 {
[%emt 0:00:29]} Rd7 {[%emt 0:01:07]} 32. Kf1 {[%emt 0:00:42]} Rdc7 {[%emt 0:00:
00]} 33. Be1 {[%emt 0:00:24]} b6 {[%emt 0:00:34]} 34. g3 {[%emt 0:00:08]} a5 {
[%emt 0:00:23]} 35. Kg2 {[%emt 0:00:51]} Ne7 {[%emt 0:03:08]} 36. Ne5 {[%emt 0:
00:00]} Nf5 {[%emt 0:00:54]} 37. g4 {[%emt 0:00:40]} Nd6 {[%emt 0:01:04]} 38.
Rd2 {[%emt 0:00:17]} Rc5 {[%emt 0:01:44]} 39. Nf3 {[%emt 0:00:20]} Nde4 {
[%emt 0:00:28]} 40. Rxd4 {[%emt 0:00:17]} Rxc2 {[%emt 0:00:05]} 41. Rd8+ {
[%emt 0:30:42]} Rxd8 {[%emt 0:30:08]} 42. Rxc2 {[%emt 0:00:08]} Rd3 {[%emt 0:
00:00]} 43. Nd2 {[%emt 0:00:00]} Ng5 {[%emt 0:00:00]} 44. Nc4 {[%emt 0:00:00]}
Nxh3 {[%emt 0:00:00]} 45. Ne3 {[%emt 0:00:00]} Nf4+ {[%emt 0:00:00]} 46. Kf3 {
[%emt 0:00:00]} Ne6 {[%emt 0:00:00]} 47. Rc8+ {[%emt 0:00:00]} Rd8 {[%emt 0:00:
00]} 48. Rxd8+ {[%emt 0:00:00]} Nxd8 {[%emt 0:00:00]} 49. Nc4 {[%emt 0:00:00]}
Nd7 {[%emt 0:00:00]} 50. Ke4 {[%emt 0:00:00]} Ke7 {[%emt 0:00:00]} 51. Bc3 {
[%emt 0:00:00]} g6 {[%emt 0:00:01]} 52. f4 {[%emt 0:01:06]} h5 {[%emt 0:02:58]}
53. gxh5 {[%emt 0:00:35]} gxh5 {[%emt 0:00:17]} 54. f5 {[%emt 0:01:39]} Nb7 {
[%emt 0:01:36]} 55. Bd4 {[%emt 0:00:43]} Nd6+ {[%emt 0:00:46]} 56. Nxd6 {
[%emt 0:01:35]} Kxd6 {[%emt 0:00:04]} 57. Kf4 {[%emt 0:00:21]} Kd5 {[%emt 0:00:
00]} 58. Bc3 {[%emt 0:01:00]} f6 {[%emt 0:00:29]} 59. Be1 {[%emt 0:00:18]} a4 {
[%emt 0:01:28]} 60. Bf2 {[%emt 0:01:45]} b5 {[%emt 0:00:07]} 61. Be1 {[%emt 0:
00:00]} Kd4 {[%emt 0:00:21]} 62. Bh4 {[%emt 0:01:11]} Kd3 {[%emt 0:00:52]} 63.
Be1 {[%emt 0:00:13]} Nb6 {[%emt 0:00:41]} 64. Bh4 {[%emt 0:01:09]} Nd5+ {
[%emt 0:00:10]} 65. Kf3 {[%emt 0:00:01]} Ne3 {[%emt 0:02:44]} 66. Bxf6 {
[%emt 0:01:03]} Nxf5 {[%emt 0:00:04]} 67. Kf4 {[%emt 0:00:30]} Nd6 {[%emt 0:00:
00]} 0-1

[Event "44th Chess Olympiad Open 2022"]
[Site "Chennai"]
[Date "2022.08.08"]
[Round "10.33"]
[White "Barcenilla, Rogelio"]
[Black "Lorenzana, Wilson Estuardo"]
[Result "1-0"]
[WhiteElo "2463"]
[BlackElo "2182"]
[Annotator "RC"]
[PlyCount "121"]
[EventDate "2022.??.??"]
[TimeControl "60"]

1. c4 {[%emt 0:00:13]} Nf6 {[%emt 0:00:18]} 2. Nc3 {[%emt 0:00:11]} g6 {
[%emt 0:02:45]} 3. g3 {[%emt 0:00:05]} Bg7 {[%emt 0:00:12]} 4. Bg2 {[%emt 0:00:
00]} O-O {[%emt 0:01:26]} 5. e4 {[%emt 0:00:05]} e5 {[%emt 0:01:46]} 6. Nge2 {
[%emt 0:00:35]} Nc6 {[%emt 0:01:03]} 7. O-O {[%emt 0:00:14]} d6 {[%emt 0:02:04]
} 8. d3 {[%emt 0:00:06]} Nd7 {[%emt 0:06:17]} 9. Nd5 {[%emt 0:08:04]} a5 {
[%emt 0:01:37]} 10. Be3 {[%emt 0:01:32]} Nd4 {[%emt 0:03:34]} 11. f4 {[%emt 0:
00:00]} c6 {[%emt 0:01:58]} 12. Ndc3 {[%emt 0:00:07]} f5 {[%emt 0:00:13]} 13.
Qd2 {[%emt 0:00:44]} Nc5 {[%emt 0:04:49]} 14. exf5 {[%emt 0:01:46]} Bxf5 {
[%emt 0:04:07]} 15. Ne4 {[%emt 0:01:38]} Nce6 {[%emt 0:09:10]} 16. Nxd4 {
[%emt 0:08:36]} exd4 {[%emt 0:26:36]} 17. Bf2 {[%emt 0:00:16]} Nc5 {[%emt 0:00:
00]} 18. Nxc5 {[%emt 0:00:53]} dxc5 {[%emt 0:00:07]} 19. h3 {[%emt 0:06:35]} h5
{[%emt 0:00:12]} 20. Rfe1 {[%emt 0:02:01]} Qd7 {[%emt 0:08:18]} 21. h4 {
[%emt 0:01:42]} Kh7 {[%emt 0:01:33]} 22. Re2 {[%emt 0:01:48]} Bf6 {[%emt 0:00:
00]} 23. Rae1 {[%emt 0:01:09]} a4 {[%emt 0:01:36]} 24. Kh2 {[%emt 0:06:08]} Kg7
{[%emt 0:01:04]} 25. Rb1 {[%emt 0:11:22]} Ra7 {[%emt 0:01:42]} 26. Rc1 {
[%emt 0:19:43]} Rc8 {[%emt 0:00:20]} 27. Be4 {[%emt 0:01:43]} Bg4 {[%emt 0:00:
00]} 28. Ree1 {[%emt 0:00:16]} b5 {[%emt 0:01:20]} 29. Rc2 {[%emt 0:01:55]} Qd6
{[%emt 0:01:33]} 30. b3 {[%emt 0:03:03]} b4 {[%emt 0:02:18]} 31. Rb2 {[%emt 0:
00:00]} axb3 {[%emt 0:02:47]} 32. axb3 {[%emt 0:00:07]} Rca8 {[%emt 0:00:06]}
33. Reb1 {[%emt 0:00:43]} Ra6 {[%emt 0:00:45]} 34. Be1 {[%emt 0:02:48]} R8a7 {
[%emt 0:02:09]} 35. Qg2 {[%emt 0:00:20]} Re7 {[%emt 0:05:35]} 36. Bd2 {[%emt 0:
00:00]} Bf5 {[%emt 0:00:46]} 37. Re1 {[%emt 0:00:18]} Bg4 {[%emt 0:00:16]} 38.
Bc1 {[%emt 0:00:27]} Ra1 {[%emt 0:00:08]} 39. Ra2 {[%emt 0:03:38]} Ra7 {
[%emt 0:01:51]} 40. Rxa7+ {[%emt 0:02:20]} Rxa7 {[%emt 0:00:05]} 41. Bxc6 {
[%emt 0:30:13]} Re7 {[%emt 0:31:38]} 42. Be4 {[%emt 0:01:05]} Ra7 {[%emt 0:00:
00]} 43. Kg1 {[%emt 0:00:00]} Qa6 {[%emt 0:00:00]} 44. f5 {[%emt 0:00:00]} gxf5
{[%emt 0:00:00]} 45. Bd5 {[%emt 0:00:00]} Re7 {[%emt 0:00:00]} 46. Qf2 {
[%emt 0:00:00]} Qd6 {[%emt 0:00:00]} 47. Bf4 {[%emt 0:00:00]} Rxe1+ {[%emt 0:
00:00]} 48. Qxe1 {[%emt 0:00:00]} Qe7 {[%emt 0:00:00]} 49. Qa1 {[%emt 0:00:00]}
Kg6 {[%emt 0:00:00]} 50. Qa8 {[%emt 0:00:00]} Qe1+ {[%emt 0:00:00]} 51. Kh2 {
[%emt 0:00:00]} Qe2+ {[%emt 0:00:00]} 52. Bg2 {[%emt 0:00:00]} Kg7 {[%emt 0:00:
00]} 53. Bd6 {[%emt 0:00:00]} Kh7 {[%emt 0:00:00]} 54. Qd5 {[%emt 0:00:54]} Kg7
{[%emt 0:00:00]} 55. Qa8 {[%emt 0:02:53]} Kh7 {[%emt 0:00:00]} 56. Qc6 {
[%emt 0:00:22]} Kg7 {[%emt 0:00:13]} 57. Bxc5 {[%emt 0:00:16]} Kf7 {[%emt 0:00:
00]} 58. Qd5+ {[%emt 0:00:43]} Ke8 {[%emt 0:01:22]} 59. Qa8+ {[%emt 0:01:58]}
Kf7 {[%emt 0:00:34]} 60. Qf8+ {[%emt 0:00:19]} Kg6 {[%emt 0:00:19]} 61. Qg8+ {
[%emt 0:00:28]} 1-0